fUSD/lending_fUSD_20250109
["ID","MTS","AMOUNT","RATE_DAILY","PERIOD"]
[348305912,1736439053784,-500.0,0.00010346,2]
[348305913,1736439053794,-1031.83,0.00010346,2]
[348305914,1736439053804,-500.0,0.00010346,2]
[348305915,1736439053814,-703.36,0.00010346,2]
[348305916,1736439053823,-500.0,0.00010346,2]
[348305917,1736439053832,-500.0,0.00010346,2]
[348305918,1736439053842,-190.97165486,0.00010346,2]
[348305919,1736439053851,-500.0,0.00010346,2]
[348305920,1736439053862,-500.0,0.00010346,2]
[348305921,1736439053875,-585.49,0.00010346,2]
[348305922,1736439053884,-500.0,0.00010346,2]
[348305923,1736439053894,-793.19,0.00010346,2]
[348305924,1736439053904,-536.33,0.00010346,2]
[348305925,1736439053914,-500.0,0.00010346,2]
[348305926,1736439053923,-500.0,0.00010346,2]
[348305927,1736439053932,-500.0,0.00010346,2]
[348305928,1736439053943,-500.0,0.00010346,2]
[348305929,1736439053953,-500.0,0.00010346,2]
[348305930,1736439053962,-547.48,0.00010346,2]
[348305931,1736439053971,-500.0,0.00010346,2]
[348305932,1736439053981,-500.0,0.00010346,2]
[348305933,1736439053991,-574.17,0.00010346,2]
[348305934,1736439054001,-500.0,0.00010346,2]
[348305935,1736439054010,-500.0,0.00010346,2]
[348305936,1736439054020,-1766.45,0.00010346,2]
[348305937,1736439054030,-500.0,0.00010346,2]
[348305938,1736439054039,-500.0,0.00010346,2]
[348305939,1736439054049,-500.0,0.00010346,2]
[348305940,1736439054059,-500.0,0.00010346,2]
[348305941,1736439054069,-500.0,0.00010346,2]
[348305942,1736439054079,-590.91,0.00010346,2]
[348305943,1736439054089,-500.0,0.00010346,2]
[348305944,1736439054098,-928.0,0.00010346,2]
[348305945,1736439054107,-500.0,0.00010346,2]
[348305946,1736439054119,-500.0,0.00010346,2]
[348305947,1736439054128,-2492.86,0.00010346,2]
[348305948,1736439054138,-500.0,0.00010346,2]
[348305949,1736439054147,-500.0,0.00010346,2]
[348305950,1736439054156,-500.0,0.00010346,2]
[348305951,1736439054166,-949.48,0.00010346,2]
[348305952,1736439054175,-4505.58,0.00010346,2]
[348305953,1736439054184,-500.0,0.00010346,2]
[348305954,1736439054193,-500.0,0.00010346,2]
[348305955,1736439054203,-1221.62,0.00010346,2]
[348305956,1736439054212,-13981.86,0.00010346,2]
[348305957,1736439054222,-510.47,0.00010346,2]
[348305958,1736439054231,-1250.16,0.00010346,2]
[348305959,1736439054240,-500.0,0.00010346,2]
[348305960,1736439054250,-500.0,0.00010346,2]
[348305961,1736439054259,-500.0,0.00010346,2]
[348305962,1736439054268,-500.0,0.00010346,2]
[348305963,1736439054277,-2326.63,0.00010346,2]
[348305964,1736439054287,-500.0,0.00010346,2]
[348305965,1736439054296,-2750.8,0.00010346,2]
[348305966,1736439054306,-500.0,0.00010346,2]
[348305967,1736439054316,-500.0,0.00010346,2]
[348305968,1736439054326,-590.66,0.00010346,2]
[348305969,1736439054335,-500.0,0.00010346,2]
[348305970,1736439054344,-2454.44,0.00010346,2]
[348305971,1736439054354,-170.32,0.00010346,2]
[348305972,1736439054365,-2089.08,0.00010346,2]
[348305973,1736439054375,-500.0,0.00010346,2]
[348305974,1736439054384,-4193.81,0.00010346,2]
[348305975,1736439054394,-2002.04,0.00010346,2]
[348305976,1736439054404,-500.0,0.00010346,2]
[348305977,1736439054413,-500.0,0.00010346,2]
[348305978,1736439054422,-500.0,0.00010346,2]
[348305979,1736439054432,-903.41,0.00010346,2]
[348305980,1736439054441,-500.0,0.00010346,2]
[348305981,1736439054451,-500.0,0.00010346,2]
[348305982,1736439054461,-500.0,0.00010346,2]
[348305983,1736439054470,-1069.040931,0.00010346,2]
[348305984,1736439054481,-500.0,0.00010346,2]
[348305985,1736439054490,-500.0,0.00010346,2]
[348305986,1736439054499,-744.03,0.00010346,2]
[348305987,1736439054509,-7404.47,0.00010346,2]
[348305988,1736439054519,-500.0,0.00010346,2]
[348305989,1736439054528,-2139.38,0.00010346,2]
[348305990,1736439054537,-4240.67,0.00010346,2]
[348305991,1736439054547,-994.584959,0.00010346,2]
[348305992,1736439054556,-1444.36,0.00010346,2]
[348305993,1736439054566,-289.49375737,0.00010346,2]
[348305994,1736439054575,-500.0,0.00010346,2]
[348305995,1736439054584,-1468.32,0.00010346,2]
[348305996,1736439054594,-872.65,0.00010346,2]
[348305997,1736439054608,-500.0,0.00010346,2]
[348305998,1736439054621,-500.0,0.00010346,2]
[348305999,1736439054631,-3179.44,0.00010346,2]
[348306000,1736439054641,-500.0,0.00010346,2]
[348306001,1736439054651,-2798.97,0.00010346,2]
[348306002,1736439054872,-500.0,0.00010346,2]
[348306003,1736439054883,-1250.13,0.00010346,2]
[348306004,1736439054893,-501.27,0.00010346,2]
[348306005,1736439054904,-500.0,0.00010346,2]
[348306006,1736439054914,-1529.02,0.00010346,2]
[348306007,1736439054923,-527.66,0.00010346,2]
[348306008,1736439054934,-500.0,0.00010346,2]
[348306009,1736439054943,-500.0,0.00010346,2]
[348306010,1736439054953,-500.0,0.00010346,2]
[348306011,1736439054961,-500.0,0.00010346,2]
[348306012,1736439054971,-500.0,0.00010346,2]
[348306013,1736439054980,-500.0,0.00010346,2]
[348306014,1736439054989,-697.28,0.00010346,2]
[348306015,1736439054999,-500.0,0.00010346,2]
[348306016,1736439055010,-500.0,0.00010346,2]
[348306017,1736439055020,-573.69,0.00010346,2]
[348306018,1736439055029,-575.61392291,0.00010346,2]
[348306019,1736439055039,-525.88,0.00010346,2]
[348306020,1736439055049,-5822.91,0.00010347,2]
[348306021,1736439055058,-500.0,0.00010347,2]
[348306022,1736439055067,-1578.54,0.00010347,2]
[348306023,1736439055075,-601.77,0.00010347,2]
[348306024,1736439055084,-925.39,0.00010347,2]
[348306025,1736439055094,-240.02750494,0.00010347,2]
[348306026,1736439055103,-1549.63,0.00010347,2]
[348306027,1736439055114,-2066.95,0.00010347,2]
[348306028,1736439055124,-2295.27,0.00010347,2]
[348306029,1736439055133,-1610.6,0.00010347,2]
[348306030,1736439055144,-3692.16,0.00010347,2]
[348306031,1736439055153,-2227.75148733,0.00010347,2]
[348306032,1736439056359,-493.25180592,9.798e-05,2]
[348306033,1736439056377,-6.74819408,9.798e-05,2]
[348306034,1736439056391,-386.69997201,9.974e-05,2]
[348306035,1736439056408,-113.30002799,9.974e-05,2]
[348306036,1736439056422,-500.0,0.00010072,2]
[348306037,1736439056437,-500.0,0.00010249,2]
[348306038,1736439056451,-488.507276,0.00010346,2]
[348306039,1736439056479,-11.492724,0.00010346,2]
[348306040,1736439056493,-839.84851267,0.00010347,2]
[348306041,1736439056506,-7734.52,0.00010347,2]
[348306042,1736439056519,-213.93161581,0.00010347,2]
[348306043,1736439056539,-5216.23838419,0.00010347,2]
[348306044,1736439056553,-548.91,0.00010347,2]
[348306045,1736439056566,-1166.01,0.00010347,2]
[348306046,1736439056581,-645.88,0.00010347,2]
[348306047,1736439056594,-500.0,0.00010347,2]
[348306048,1736439056607,-711.37,0.00010347,2]
[348306049,1736439056621,-517.5,0.00010347,2]
[348306050,1736439056634,-500.0,0.00010347,2]
[348306051,1736439056647,-833.88,0.00010347,2]
[348306052,1736439056659,-500.0,0.00010347,2]
[348306053,1736439056672,-2864.22280543,0.00010347,2]
[348306054,1736439056689,-3536.90000001,0.00010347,2]
[348306055,1736439056717,-297.16719456,0.00010347,2]
[348306056,1736439056734,-202.83280544,0.00010347,2]
[348306057,1736439056751,-1044.2,0.00010347,2]
[348306058,1736439056781,-613.88,0.00010248,2]
[348306059,1736439056792,-367.12,0.00010347,2]
[348306060,1736439056803,-394.3801098,0.00010347,2]
[348306061,1736439057034,-505.81708476,0.00010347,2]
[348306062,1736439057044,-1883.89,0.00010347,2]
[348306063,1736439057053,-598.09,0.00010347,2]
[348306064,1736439057064,-841.93,0.00010347,2]
[348306065,1736439057073,-1893.35,0.00010347,2]
[348306066,1736439057083,-500.0,0.00010347,2]
[348306067,1736439057093,-1151.6,0.00010347,2]
[348306068,1736439057102,-854.5,0.00010347,2]
[348306069,1736439057112,-2050.47,0.00010347,2]
[348306070,1736439057569,-611.94,0.00010347,2]
[348306071,1736439057597,-1364.2,0.00010347,2]
[348306072,1736439057617,-500.0,0.00010347,2]
[348306073,1736439057627,-2999.35,0.00010347,2]
[348306074,1736439057637,-500.0,0.00010347,2]
[348306075,1736439057646,-652.64,0.00010347,2]
[348306076,1736439057655,-500.0,0.00010347,2]
[348306077,1736439057664,-500.0,0.00010347,2]
[348306078,1736439057674,-500.0,0.00010347,2]
[348306079,1736439057684,-1086.31251525,0.00010347,2]
[348306080,1736439057696,-854.93748475,0.00010347,2]
[348306081,1736439057706,-500.0,0.00010347,2]
[348306082,1736439057715,-801.37,0.00010347,2]
[348306083,1736439057728,-1278.23,0.00010347,2]
[348306084,1736439057736,-888.16,0.00010347,2]
[348306085,1736439057746,-1271.54,0.00010347,2]
[348306086,1736439057755,-500.0,0.00010347,2]
[348306087,1736439057766,-1387.36,0.00010347,2]
[348306088,1736439057775,-500.0,0.00010347,2]
[348306089,1736439057784,-2508.1,0.00010347,2]
[348306090,1736439057794,-500.0,0.00010347,2]
[348306091,1736439057805,-500.0,0.00010347,2]
[348306092,1736439057814,-755.26,0.00010347,2]
[348306093,1736439057823,-2371.26,0.00010347,2]
[348306094,1736439057833,-500.0,0.00010347,2]
[348306095,1736439057842,-500.0,0.00010347,2]
[348306096,1736439057851,-992.54,0.00010347,2]
[348306097,1736439057861,-500.0,0.00010347,2]
[348306098,1736439057871,-2701.11,0.00010347,2]
[348306099,1736439057881,-2329.67,0.00010347,2]
[348306100,1736439057890,-903.55,0.00010347,2]
[348306101,1736439057901,-628.25,0.00010347,2]
[348306102,1736439057910,-1037.17,0.00010347,2]
[348306103,1736439057920,-2277.6,0.00010347,2]
[348306104,1736439057930,-5358.4,0.00010347,2]
[348306105,1736439057940,-1136.52039046,0.00010362,2]
[348306106,1736439057951,-551.14,0.00010448,2]
[348306107,1736439057960,-150.0,0.00010463,2]
[348306108,1736439057969,-1136.52039046,0.00010472,2]
[348306109,1736439057979,-29999.99,0.00010475,2]
[348306110,1736439057988,-618.97,0.00010522,2]
[348306111,1736439057998,-356.8812974,0.00010522,2]
[348306112,1736439058007,-500.0,0.00010522,2]
[348306113,1736439058017,-500.0,0.00010522,2]
[348306114,1736439058026,-500.0,0.00010522,2]
[348306115,1736439058035,-500.0,0.00010522,2]
[348306116,1736439058044,-500.0,0.00010522,2]
[348306117,1736439058054,-500.0,0.00010522,2]
[348306118,1736439058064,-500.0,0.00010522,2]
[348306119,1736439058074,-500.0,0.00010522,2]
[348306120,1736439058085,-500.0,0.00010522,2]
[348306121,1736439058094,-568.83,0.00010522,2]
[348306122,1736439058104,-500.0,0.00010522,2]
[348306123,1736439058115,-500.0,0.00010522,2]
[348306124,1736439058126,-1074.09,0.00010522,2]
[348306125,1736439058136,-500.0,0.00010522,2]
[348306126,1736439058146,-872.77,0.00010522,2]
[348306127,1736439058155,-500.0,0.00010522,2]
[348306128,1736439058164,-500.0,0.00010522,2]
[348306129,1736439058174,-500.0,0.00010522,2]
[348306130,1736439058185,-500.0,0.00010522,2]
[348306131,1736439058195,-500.0,0.00010522,2]
[348306132,1736439058205,-500.0,0.00010522,2]
[348306133,1736439058216,-500.0,0.00010522,2]
[348306134,1736439058225,-378.46401928,0.00010522,2]
[348306135,1736439058234,-500.0,0.00010522,2]
[348306136,1736439058244,-500.0,0.00010522,2]
[348306137,1736439058255,-1465.92,0.00010522,2]
[348306138,1736439058265,-500.0,0.00010522,2]
[348306139,1736439058275,-500.0,0.00010522,2]
[348306140,1736439058284,-500.0,0.00010522,2]
[348306141,1736439058294,-802.65,0.00010522,2]
[348306142,1736439058304,-500.0,0.00010522,2]
[348306143,1736439058313,-500.0,0.00010522,2]
[348306144,1736439058323,-500.0,0.00010522,2]
[348306145,1736439058332,-881.13,0.00010522,2]
[348306146,1736439058342,-500.0,0.00010522,2]
[348306147,1736439058351,-500.0,0.00010522,2]
[348306148,1736439058362,-500.0,0.00010522,2]
[348306149,1736439058373,-500.0,0.00010522,2]
[348306150,1736439058383,-500.0,0.00010522,2]
[348306151,1736439058392,-500.0,0.00010522,2]
[348306152,1736439058402,-500.0,0.00010522,2]
[348306153,1736439058412,-500.0,0.00010522,2]
[348306154,1736439058422,-643.11,0.00010522,2]
[348306155,1736439058431,-500.0,0.00010522,2]
[348306156,1736439058442,-505.19,0.00010522,2]
[348306157,1736439058451,-533.53,0.00010522,2]
[348306158,1736439058460,-500.0,0.00010522,2]
[348306159,1736439058470,-500.0,0.00010522,2]
[348306160,1736439058480,-500.0,0.00010522,2]
[348306161,1736439058489,-500.0,0.00010522,2]
[348306162,1736439058499,-500.0,0.00010522,2]
[348306163,1736439058508,-500.0,0.00010522,2]
[348306164,1736439058519,-500.0,0.00010522,2]
[348306165,1736439058529,-500.0,0.00010522,2]
[348306166,1736439058539,-518.51,0.00010522,2]
[348306167,1736439058548,-500.0,0.00010522,2]
[348306168,1736439058558,-500.0,0.00010522,2]
[348306169,1736439058570,-500.0,0.00010522,2]
[348306170,1736439058580,-500.0,0.00010522,2]
[348306171,1736439058589,-500.0,0.00010522,2]
[348306172,1736439058599,-941.22,0.00010522,2]
[348306173,1736439058608,-500.0,0.00010522,2]
[348306174,1736439058619,-500.0,0.00010522,2]
[348306175,1736439058628,-500.0,0.00010522,2]
[348306176,1736439058638,-500.0,0.00010522,2]
[348306177,1736439058647,-500.0,0.00010522,2]
[348306178,1736439058657,-500.0,0.00010522,2]
[348306179,1736439058666,-647.52,0.00010522,2]
[348306180,1736439058676,-500.0,0.00010522,2]
[348306181,1736439058685,-500.0,0.00010522,2]
[348306182,1736439058694,-580.61,0.00010522,2]
[348306183,1736439058704,-500.0,0.00010522,2]
[348306184,1736439058713,-500.0,0.00010522,2]
[348306185,1736439058723,-500.0,0.00010522,2]
[348306186,1736439058735,-1272.17,0.00010522,2]
[348306187,1736439058745,-500.0,0.00010522,2]
[348306188,1736439058755,-672.23,0.00010522,2]
[348306189,1736439058764,-559.08,0.00010522,2]
[348306190,1736439058774,-500.0,0.00010522,2]
[348306191,1736439058783,-500.0,0.00010522,2]
[348306192,1736439058792,-517.09,0.00010522,2]
[348306193,1736439058801,-500.0,0.00010522,2]
[348306194,1736439058811,-500.0,0.00010522,2]
[348306195,1736439058821,-1755.98,0.00010522,2]
[348306196,1736439058831,-500.0,0.00010522,2]
[348306197,1736439058842,-500.0,0.00010522,2]
[348306198,1736439058852,-500.0,0.00010522,2]
[348306199,1736439058863,-500.0,0.00010522,2]
[348306200,1736439058875,-500.0,0.00010522,2]
[348306201,1736439058884,-511.57,0.00010522,2]
[348306202,1736439058894,-500.0,0.00010522,2]
[348306203,1736439058903,-500.0,0.00010522,2]
[348306204,1736439058912,-500.0,0.00010522,2]
[348306205,1736439058921,-500.0,0.00010522,2]
[348306206,1736439058931,-500.0,0.00010522,2]
[348306207,1736439058941,-500.0,0.00010522,2]
[348306208,1736439058950,-500.0,0.00010522,2]
[348306209,1736439058959,-500.0,0.00010522,2]
[348306210,1736439058969,-500.0,0.00010522,2]
[348306211,1736439058978,-500.0,0.00010522,2]
[348306212,1736439058987,-500.0,0.00010522,2]
[348306213,1736439058997,-500.0,0.00010522,2]
[348306214,1736439059006,-500.0,0.00010522,2]
[348306215,1736439059016,-532.03,0.00010522,2]
[348306216,1736439059025,-500.0,0.00010522,2]
[348306217,1736439059035,-500.0,0.00010522,2]
[348306218,1736439059044,-1694.93,0.00010522,2]
[348306219,1736439059054,-500.0,0.00010522,2]
[348306220,1736439059063,-500.0,0.00010522,2]
[348306221,1736439059074,-500.0,0.00010522,2]
[348306222,1736439059083,-500.0,0.00010522,2]
[348306223,1736439059092,-873.12,0.00010522,2]
[348306224,1736439059102,-500.0,0.00010522,2]
[348306225,1736439059111,-500.0,0.00010522,2]
[348306226,1736439059123,-500.0,0.00010522,2]
[348306227,1736439059132,-500.0,0.00010522,2]
[348306228,1736439059142,-500.0,0.00010522,2]
[348306229,1736439059151,-500.0,0.00010522,2]
[348306230,1736439059160,-1734.48,0.00010522,2]
[348306231,1736439059169,-651.87,0.00010522,2]
[348306232,1736439059179,-500.0,0.00010522,2]
[348306233,1736439059189,-500.0,0.00010522,2]
[348306234,1736439059198,-500.0,0.00010522,2]
[348306235,1736439059207,-500.0,0.00010522,2]
[348306236,1736439059217,-500.0,0.00010522,2]
[348306237,1736439059226,-500.0,0.00010522,2]
[348306238,1736439059235,-500.0,0.00010522,2]
[348306239,1736439059245,-500.0,0.00010522,2]
[348306240,1736439059254,-1696.98,0.00010522,2]
[348306241,1736439059263,-500.0,0.00010522,2]
[348306242,1736439059273,-500.0,0.00010522,2]
[348306243,1736439059282,-500.0,0.00010522,2]
[348306244,1736439059291,-745.7,0.00010522,2]
[348306245,1736439059300,-662.45,0.00010522,2]
[348306246,1736439059309,-500.0,0.00010522,2]
[348306247,1736439059318,-14.10022518,0.00010522,2]
[348306248,1736439059333,-276.427912,0.00010522,2]
[348306249,1736439059352,-209.47186282,0.00010522,2]
[348306250,1736439059361,-398.88526667,0.00010522,2]
[348306251,1736439059374,-101.11473333,0.00010522,2]
[348306252,1736439059384,-796.4106356,0.00010522,2]
[348306253,1736439059408,-374.9293644,0.00010522,2]
[348306254,1736439059418,-500.0,0.00010522,2]
[348306255,1736439059427,-500.0,0.00010522,2]
[348306256,1736439059436,-500.0,0.00010522,2]
[348306257,1736439059446,-500.0,0.00010522,2]
[348306258,1736439059455,-500.0,0.00010522,2]
[348306259,1736439059464,-1268.51,0.00010522,2]
[348306260,1736439059474,-500.0,0.00010522,2]
[348306261,1736439059484,-599.79,0.00010522,2]
[348306262,1736439059493,-500.0,0.00010522,2]
[348306263,1736439059502,-500.0,0.00010522,2]
[348306264,1736439059512,-500.0,0.00010522,2]
[348306265,1736439059521,-500.0,0.00010522,2]
[348306266,1736439059531,-500.0,0.00010522,2]
[348306267,1736439059539,-500.0,0.00010522,2]
[348306268,1736439059548,-1842.61,0.00010522,2]
[348306269,1736439059558,-500.0,0.00010522,2]
[348306270,1736439059567,-3321.19,0.00010522,2]
[348306271,1736439059576,-500.0,0.00010522,2]
[348306272,1736439059585,-1352.54,0.00010522,2]
[348306273,1736439059594,-500.0,0.00010522,2]
[348306274,1736439059603,-500.0,0.00010522,2]
[348306275,1736439059612,-500.0,0.00010522,2]
[348306276,1736439059623,-661.28,0.00010522,2]
[348306277,1736439059632,-500.0,0.00010522,2]
[348306278,1736439059641,-500.0,0.00010522,2]
[348306279,1736439059650,-500.0,0.00010522,2]
[348306280,1736439059659,-500.0,0.00010522,2]
[348306281,1736439059669,-500.0,0.00010522,2]
[348306282,1736439059681,-500.0,0.00010522,2]
[348306283,1736439059690,-500.0,0.00010522,2]
[348306284,1736439059699,-500.0,0.00010522,2]
[348306285,1736439059708,-953.8,0.00010522,2]
[348306286,1736439059718,-500.0,0.00010522,2]
[348306287,1736439059731,-500.0,0.00010522,2]
[348306288,1736439059740,-5488.77,0.00010522,2]
[348306289,1736439059749,-1429.96,0.00010522,2]
[348306290,1736439059760,-1215.89,0.00010522,2]
[348306291,1736439059769,-500.0,0.00010522,2]
[348306292,1736439059778,-500.0,0.00010522,2]
[348306293,1736439059788,-500.0,0.00010522,2]
[348306294,1736439059798,-500.0,0.00010522,2]
[348306295,1736439059813,-500.0,0.00010522,2]
[348306296,1736439059822,-500.0,0.00010522,2]
[348306297,1736439059831,-500.0,0.00010522,2]
[348306298,1736439059840,-786.61,0.00010522,2]
[348306299,1736439059850,-639.48,0.00010522,2]
[348306300,1736439059860,-500.0,0.00010522,2]
[348306301,1736439059871,-500.0,0.00010522,2]
[348306302,1736439059880,-500.0,0.00010522,2]
[348306303,1736439059889,-500.0,0.00010522,2]
[348306304,1736439059899,-500.0,0.00010522,2]
[348306305,1736439059908,-500.0,0.00010522,2]
[348306306,1736439059918,-1385.56,0.00010522,2]
[348306307,1736439059929,-1300.33,0.00010522,2]
[348306308,1736439059940,-500.0,0.00010522,2]
[348306309,1736439059952,-4521.15,0.00010522,2]
[348306310,1736439059961,-1054.99,0.00010522,2]
[348306311,1736439059970,-500.0,0.00010522,2]
[348306312,1736439059979,-500.0,0.00010522,2]
[348306313,1736439059989,-500.0,0.00010522,2]
[348306314,1736439059999,-515.68,0.00010522,2]
[348306315,1736439060009,-500.0,0.00010522,2]
[348306316,1736439060018,-500.0,0.00010522,2]
[348306317,1736439060029,-500.0,0.00010522,2]
[348306318,1736439060038,-500.0,0.00010522,2]
[348306319,1736439060048,-500.0,0.00010522,2]
[348306320,1736439060058,-713.06,0.00010522,2]
[348306321,1736439060068,-500.0,0.00010522,2]
[348306322,1736439060077,-500.0,0.00010522,2]
[348306323,1736439060087,-500.0,0.00010522,2]
[348306324,1736439060096,-500.0,0.00010522,2]
[348306325,1736439060106,-665.72,0.00010522,2]
[348306326,1736439060116,-500.0,0.00010522,2]
[348306327,1736439060126,-500.0,0.00010522,2]
[348306328,1736439060135,-500.0,0.00010522,2]
[348306329,1736439060145,-500.0,0.00010522,2]
[348306330,1736439060154,-1102.61,0.00010522,2]
[348306331,1736439060165,-509.97,0.00010522,2]
[348306332,1736439060175,-583.46291414,0.00010522,2]
[348306333,1736439060185,-676.41,0.00010522,2]
[348306334,1736439060194,-500.0,0.00010522,2]
[348306335,1736439060204,-500.0,0.00010522,2]
[348306336,1736439060214,-500.0,0.00010522,2]
[348306337,1736439060224,-500.0,0.00010522,2]
[348306338,1736439060234,-500.0,0.00010522,2]
[348306339,1736439060243,-500.0,0.00010522,2]
[348306340,1736439060254,-679.98,0.00010522,2]
[348306341,1736439060263,-1487.57,0.00010522,2]
[348306342,1736439060273,-500.0,0.00010522,2]
[348306343,1736439060282,-502.38732398,0.00010522,2]
[348306344,1736439060291,-457.51791365,0.00010522,2]
[348306345,1736439060300,-482.33155708,0.00010522,2]
[348306346,1736439060310,-500.0,0.00010522,2]
[348306347,1736439060319,-1394.43,0.00010522,2]
[348306348,1736439060328,-500.0,0.00010522,2]
[348306349,1736439060338,-500.0,0.00010522,2]
[348306350,1736439060348,-782.46,0.00010522,2]
[348306351,1736439060357,-746.76,0.00010522,2]
[348306352,1736439060369,-1065.62,0.00010522,2]
[348306353,1736439060378,-500.0,0.00010522,2]
[348306354,1736439060388,-500.0,0.00010522,2]
[348306355,1736439060397,-1279.01,0.00010522,2]
[348306356,1736439060407,-1477.38,0.00010522,2]
[348306357,1736439060416,-500.0,0.00010522,2]
[348306358,1736439060426,-622.24,0.00010522,2]
[348306359,1736439060435,-500.0,0.00010522,2]
[348306360,1736439060445,-184.33356163,0.00010522,2]
[348306361,1736439060454,-535.22,0.00010522,2]
[348306362,1736439060463,-500.0,0.00010522,2]
[348306363,1736439060473,-500.0,0.00010522,2]
[348306364,1736439060483,-500.0,0.00010522,2]
[348306365,1736439060492,-500.0,0.00010523,2]
[348306366,1736439060502,-500.0,0.00010523,2]
[348306367,1736439060511,-500.0,0.00010523,2]
[348306368,1736439060520,-500.0,0.00010523,2]
[348306369,1736439060530,-500.0,0.00010523,2]
[348306370,1736439060540,-500.0,0.00010523,2]
[348306371,1736439060549,-500.0,0.00010523,2]
[348306372,1736439060559,-500.0,0.00010523,2]
[348306373,1736439060568,-500.0,0.00010523,2]
[348306374,1736439060578,-500.0,0.00010523,2]
[348306375,1736439060587,-500.0,0.00010523,2]
[348306376,1736439060597,-500.0,0.00010523,2]
[348306377,1736439060607,-500.0,0.00010523,2]
[348306378,1736439060617,-500.0,0.00010523,2]
[348306379,1736439060627,-500.0,0.00010523,2]
[348306380,1736439060636,-500.0,0.00010523,2]
[348306381,1736439060646,-500.0,0.00010523,2]
[348306382,1736439060656,-500.0,0.00010523,2]
[348306383,1736439060666,-500.0,0.00010523,2]
[348306384,1736439060676,-500.0,0.00010523,2]
[348306385,1736439060685,-1607.22,0.00010523,2]
[348306386,1736439060695,-934.31,0.00010523,2]
[348306387,1736439060704,-2252.04,0.00010523,2]
[348306388,1736439060714,-2909.97,0.00010523,2]
[348306389,1736439060726,-3054.64,0.00010523,2]
[348306390,1736439060735,-1951.19,0.00010523,2]
[348306391,1736439060745,-2721.21,0.00010523,2]
[348306392,1736439060758,-5541.6,0.00010523,2]
[348306393,1736439060770,-13573.49,0.00010523,2]
[348306394,1736439060779,-3895.28,0.00010523,2]
[348306395,1736439060789,-2256.12,0.00010523,2]
[348306396,1736439060802,-876.12,0.00010523,2]
[348306397,1736439060813,-500.0,0.00010523,2]
[348306398,1736439060823,-1246.08,0.00010523,2]
[348306399,1736439060835,-500.0,0.00010523,2]
[348306400,1736439061015,-1515.87,0.00010524,2]
[348306401,1736439061031,-567.36,0.00010524,2]
[348306402,1736439061041,-2160.6,0.00010524,2]
[348306403,1736439061051,-1000.0,0.00010524,2]
[348306404,1736439061061,-1402.84,0.00010524,2]
[348306405,1736439061071,-500.0,0.00010524,2]
[348306406,1736439061080,-3197.74,0.00010524,2]
[348306407,1736439061089,-2454.92,0.00010524,2]
[348306408,1736439061098,-587.0,0.00010545,2]
[348306409,1736439061109,-150.0,0.00010552,2]
[348306410,1736439061122,-471.3460838,0.00010572,2]
[348306411,1736439061131,-1136.52039046,0.00010583,2]